[Event "Early-Titled-Tuesday-Blitz-April-23-2024"]
[Site "Chess.com"]
[Date "2024.04.23"]
[Round "5"]
[White "Statham_01"]
[Black "Shiner22"]
[Result "1-0"]
[WhiteElo "2575"]
[BlackElo "2325"]
[TimeControl "180+1"]
[EndTime "8:56:10 PDT"]
[Termination "Statham_01 won by resignation"]

1. e4 {[%clk 0:02:56.7]} 1... c5 {[%clk 0:02:59.9]} 2. a3 {[%clk 0:02:56.5]}
2... g6 {[%clk 0:02:58.6]} 3. c3 {[%clk 0:02:56.1]} 3... Bg7 {[%clk 0:02:57.3]}
4. Nf3 {[%clk 0:02:56.7]} 4... Nc6 {[%clk 0:02:56.7]} 5. d4 {[%clk 0:02:56.7]}
5... cxd4 {[%clk 0:02:56.8]} 6. cxd4 {[%clk 0:02:57.6]} 6... d5 {[%clk
0:02:56.9]} 7. exd5 {[%clk 0:02:53]} 7... Qxd5 {[%clk 0:02:56.4]} 8. Nc3 {[%clk
0:02:53.6]} 8... Qh5 {[%clk 0:02:51.1]} 9. d5 {[%clk 0:02:50.6]} 9... Nd4 {[%clk
0:02:41.2]} 10. Be2 {[%clk 0:02:32.1]} 10... Nxe2 {[%clk 0:02:39.8]} 11. Qxe2
{[%clk 0:02:33]} 11... a6 {[%clk 0:02:32.7]} 12. O-O {[%clk 0:02:24.5]} 12...
Bg4 {[%clk 0:02:32.1]} 13. Bf4 {[%clk 0:02:19.8]} 13... Bxf3 {[%clk 0:02:31.9]}
14. gxf3 {[%clk 0:02:20.5]} 14... Nf6 {[%clk 0:02:18.9]} 15. d6 {[%clk
0:02:19.4]} 15... e6 {[%clk 0:02:13.7]} 16. Rac1 {[%clk 0:02:16.5]} 16... O-O
{[%clk 0:02:13.2]} 17. Rfd1 {[%clk 0:02:12.7]} 17... Rfd8 {[%clk 0:02:09.9]} 18.
Bg3 {[%clk 0:02:03.5]} 18... Qf5 {[%clk 0:02:00.8]} 19. Ne4 {[%clk 0:02:01.8]}
19... Nd5 {[%clk 0:01:58.7]} 20. Rc5 {[%clk 0:01:31.7]} 20... Be5 {[%clk
0:01:44.9]} 21. Rdxd5 {[%clk 0:01:20]} 21... exd5 {[%clk 0:01:39.3]} 22. Rxd5
{[%clk 0:01:20.9]} 22... Rac8 {[%clk 0:01:37.7]} 23. Bxe5 {[%clk 0:01:14.6]}
23... Rc1+ {[%clk 0:01:33.2]} 24. Kg2 {[%clk 0:01:12.1]} 24... f6 {[%clk
0:01:18.4]} 25. Bc3 {[%clk 0:01:06.1]} 25... Qf4 {[%clk 0:00:30.1]} 26. Nxf6+
{[%clk 0:01:04.9]} 26... Kh8 {[%clk 0:00:22.6]} 27. Nh5+ {[%clk 0:01:03.4]} 1-0

[Event "Early-Titled-Tuesday-Blitz-April-23-2024"]
[Site "Chess.com"]
[Date "2024.04.23"]
[Round "5"]
[White "sterpfi"]
[Black "Kushch_Nikolai"]
[Result "1-0"]
[WhiteElo "2248"]
[BlackElo "2403"]
[TimeControl "180+1"]
[EndTime "8:56:13 PDT"]
[Termination "sterpfi won by checkmate"]

1. e4 {[%clk 0:03:00.9]} 1... c5 {[%clk 0:02:59.5]} 2. Nc3 {[%clk 0:03:00]} 2...
e6 {[%clk 0:02:59.4]} 3. Nf3 {[%clk 0:02:57.5]} 3... a6 {[%clk 0:02:58.4]} 4. g3
{[%clk 0:02:57.2]} 4... d5 {[%clk 0:02:55.7]} 5. exd5 {[%clk 0:02:56.2]} 5...
exd5 {[%clk 0:02:55.7]} 6. Bg2 {[%clk 0:02:53.3]} 6... d4 {[%clk 0:02:52.2]} 7.
Ne4 {[%clk 0:02:52]} 7... Bf5 {[%clk 0:02:48.4]} 8. Qe2 {[%clk 0:02:48]} 8...
Bxe4 {[%clk 0:02:40.1]} 9. Qxe4+ {[%clk 0:02:47.7]} 9... Qe7 {[%clk 0:02:40]}
10. Ne5 {[%clk 0:02:30.3]} 10... Nf6 {[%clk 0:02:07]} 11. Qxb7 {[%clk
0:02:22.3]} 11... Qxb7 {[%clk 0:01:53.2]} 12. Bxb7 {[%clk 0:02:21]} 12... Ra7
{[%clk 0:01:53.5]} 13. Bg2 {[%clk 0:02:02.5]} 13... Re7 {[%clk 0:01:52.5]} 14.
f4 {[%clk 0:02:02.2]} 14... Nfd7 {[%clk 0:01:52]} 15. O-O {[%clk 0:01:54]} 15...
Nxe5 {[%clk 0:01:51.1]} 16. fxe5 {[%clk 0:01:54.9]} 16... Rxe5 {[%clk 0:01:51]}
17. d3 {[%clk 0:01:51.4]} 17... Re6 {[%clk 0:01:38.9]} 18. Bf4 {[%clk
0:01:43.2]} 18... Bd6 {[%clk 0:01:38.4]} 19. Rae1 {[%clk 0:01:38.1]} 19... Kd7
{[%clk 0:01:31.9]} 20. Bh3 {[%clk 0:01:20.5]} 20... Nc6 {[%clk 0:01:30.2]} 21.
Bxd6 {[%clk 0:01:08.1]} 21... Kxd6 {[%clk 0:01:28.8]} 22. Bxe6 {[%clk
0:01:05.9]} 22... fxe6 {[%clk 0:01:28.9]} 23. Rf7 {[%clk 0:01:06]} 23... g6
{[%clk 0:01:26.7]} 24. Rb7 {[%clk 0:00:54]} 24... Re8 {[%clk 0:01:20.5]} 25. Rf1
{[%clk 0:00:50.9]} 25... h5 {[%clk 0:01:18.5]} 26. Rg7 {[%clk 0:00:38.6]} 26...
Ne5 {[%clk 0:01:17.4]} 27. Ra7 {[%clk 0:00:38.6]} 27... g5 {[%clk 0:01:14.9]}
28. Rxa6+ {[%clk 0:00:38.8]} 28... Kd5 {[%clk 0:01:15]} 29. a4 {[%clk
0:00:33.8]} 29... g4 {[%clk 0:01:14.6]} 30. Kg2 {[%clk 0:00:33]} 30... Nc6
{[%clk 0:01:10.5]} 31. Rf2 {[%clk 0:00:24.6]} 31... e5 {[%clk 0:01:09.8]} 32.
Rf6 {[%clk 0:00:21.1]} 32... Nb4 {[%clk 0:01:09.2]} 33. Rad6# {[%clk 0:00:20.2]}
1-0

[Event "Early-Titled-Tuesday-Blitz-April-23-2024"]
[Site "Chess.com"]
[Date "2024.04.23"]
[Round "5"]
[White "RamonManon0g"]
[Black "viktorskliarov"]
[Result "0-1"]
[WhiteElo "2453"]
[BlackElo "2613"]
[TimeControl "180+1"]
[EndTime "8:56:15 PDT"]
[Termination "viktorskliarov won by resignation"]

1. e4 {[%clk 0:03:00.9]} 1... c5 {[%clk 0:02:59.8]} 2. Nf3 {[%clk 0:03:00.7]}
2... Nc6 {[%clk 0:03:00]} 3. d4 {[%clk 0:02:59.8]} 3... cxd4 {[%clk 0:03:00.4]}
4. Nxd4 {[%clk 0:03:00.7]} 4... Nf6 {[%clk 0:03:00.8]} 5. Nc3 {[%clk 0:03:00.7]}
5... e5 {[%clk 0:03:01.1]} 6. Ndb5 {[%clk 0:03:00]} 6... d6 {[%clk 0:03:01.7]}
7. Nd5 {[%clk 0:03:00.2]} 7... Nxd5 {[%clk 0:03:01.6]} 8. exd5 {[%clk
0:02:59.7]} 8... Nb8 {[%clk 0:03:02.2]} 9. Bd3 {[%clk 0:02:49.3]} 9... a6 {[%clk
0:02:59.2]} 10. Na3 {[%clk 0:02:48.8]} 10... b5 {[%clk 0:02:54]} 11. O-O {[%clk
0:02:46.6]} 11... Be7 {[%clk 0:02:53.2]} 12. c4 {[%clk 0:02:42.3]} 12... bxc4
{[%clk 0:02:52.4]} 13. Nxc4 {[%clk 0:02:43.2]} 13... O-O {[%clk 0:02:51.6]} 14.
f4 {[%clk 0:02:40.1]} 14... exf4 {[%clk 0:02:24.9]} 15. Bxf4 {[%clk 0:02:41]}
15... Nd7 {[%clk 0:02:24.5]} 16. Nxd6 {[%clk 0:02:39.2]} 16... Bxd6 {[%clk
0:02:22.9]} 17. Bxd6 {[%clk 0:02:40.1]} 17... Qb6+ {[%clk 0:02:22.6]} 18. Kh1
{[%clk 0:02:29.8]} 18... Qxd6 {[%clk 0:02:21.7]} 19. Qh5 {[%clk 0:02:28.5]}
19... Qh6 {[%clk 0:02:02.1]} 20. Qe2 {[%clk 0:01:53.8]} 20... Nf6 {[%clk
0:01:59.2]} 21. d6 {[%clk 0:01:52.4]} 21... Be6 {[%clk 0:01:47.8]} 22. Rac1
{[%clk 0:01:45.6]} 22... a5 {[%clk 0:01:44]} 23. b3 {[%clk 0:01:41.9]} 23...
Rad8 {[%clk 0:01:39.7]} 24. Rc6 {[%clk 0:01:40.8]} 24... Bd5 {[%clk 0:01:39]}
25. Ra6 {[%clk 0:01:30.4]} 25... Rfe8 {[%clk 0:01:38.4]} 26. Qf2 {[%clk
0:01:25.3]} 26... Qe3 {[%clk 0:01:02.4]} 27. Qf5 {[%clk 0:01:01.2]} 27... Qd2
{[%clk 0:00:45.8]} 28. Rf2 {[%clk 0:00:42.1]} 28... Re1+ {[%clk 0:00:45]} 29.
Bf1 {[%clk 0:00:41.8]} 29... Rxf1+ {[%clk 0:00:43.7]} 0-1

[Event "Early-Titled-Tuesday-Blitz-April-23-2024"]
[Site "Chess.com"]
[Date "2024.04.23"]
[Round "5"]
[White "Makswolf200817"]
[Black "michaelq2d5"]
[Result "1-0"]
[WhiteElo "2817"]
[BlackElo "2925"]
[TimeControl "180+1"]
[EndTime "8:56:18 PDT"]
[Termination "Makswolf200817 won by resignation"]

1. d4 {[%clk 0:03:00.9]} 1... d5 {[%clk 0:03:00.3]} 2. c4 {[%clk 0:03:00.9]}
2... dxc4 {[%clk 0:03:00.9]} 3. Nf3 {[%clk 0:03:00.6]} 3... Nf6 {[%clk
0:03:01.3]} 4. e3 {[%clk 0:03:01.2]} 4... a6 {[%clk 0:03:02]} 5. Bxc4 {[%clk
0:03:01.8]} 5... e6 {[%clk 0:03:02.9]} 6. O-O {[%clk 0:03:02.3]} 6... c5 {[%clk
0:03:03.7]} 7. Nbd2 {[%clk 0:03:02.6]} 7... Nc6 {[%clk 0:03:03.3]} 8. dxc5
{[%clk 0:03:02.4]} 8... Bxc5 {[%clk 0:03:03.4]} 9. a3 {[%clk 0:03:03.1]} 9... b5
{[%clk 0:03:02.8]} 10. Be2 {[%clk 0:03:03]} 10... Bb7 {[%clk 0:03:03.3]} 11. b4
{[%clk 0:03:03.5]} 11... Bd6 {[%clk 0:03:03.2]} 12. Bb2 {[%clk 0:03:03.6]} 12...
O-O {[%clk 0:03:03.6]} 13. Rc1 {[%clk 0:02:57.9]} 13... Qe7 {[%clk 0:03:01.9]}
14. Qc2 {[%clk 0:02:47.1]} 14... Rfc8 {[%clk 0:02:53.4]} 15. Qb1 {[%clk
0:02:44.9]} 15... a5 {[%clk 0:02:38.7]} 16. Bxb5 {[%clk 0:02:06.9]} 16... axb4
{[%clk 0:02:38.7]} 17. a4 {[%clk 0:02:07.6]} 17... Na5 {[%clk 0:02:34.1]} 18.
Ne5 {[%clk 0:01:59]} 18... Nd5 {[%clk 0:02:14.6]} 19. Nec4 {[%clk 0:01:51.9]}
19... Nxc4 {[%clk 0:02:09]} 20. Nxc4 {[%clk 0:01:52.8]} 20... Bc5 {[%clk
0:02:01.3]} 21. Rfd1 {[%clk 0:01:03.1]} 21... Ba6 {[%clk 0:01:18.8]} 22. Bxa6
{[%clk 0:00:52.3]} 22... Rxa6 {[%clk 0:01:18.8]} 23. a5 {[%clk 0:00:53]} 23...
h6 {[%clk 0:01:16.2]} 24. Qe4 {[%clk 0:00:52.6]} 24... Ba7 {[%clk 0:01:06.1]}
25. Rxd5 {[%clk 0:00:47.8]} 25... Rac6 {[%clk 0:00:49.8]} 26. Rdd1 {[%clk
0:00:40.8]} 26... Qc7 {[%clk 0:00:45.1]} 27. Qe5 {[%clk 0:00:34.8]} 1-0

[Event "Early-Titled-Tuesday-Blitz-April-23-2024"]
[Site "Chess.com"]
[Date "2024.04.23"]
[Round "5"]
[White "AlphaGoosee"]
[Black "kuchma777"]
[Result "1-0"]
[WhiteElo "2632"]
[BlackElo "2476"]
[TimeControl "180+1"]
[EndTime "8:56:21 PDT"]
[Termination "AlphaGoosee won by checkmate"]

1. e4 {[%clk 0:02:57.9]} 1... c6 {[%clk 0:02:59.7]} 2. d4 {[%clk 0:02:56.9]}
2... d5 {[%clk 0:03:00.1]} 3. exd5 {[%clk 0:02:57.8]} 3... cxd5 {[%clk 0:03:01]}
4. Bd3 {[%clk 0:02:58.5]} 4... Nc6 {[%clk 0:03:01.5]} 5. c3 {[%clk 0:02:59.2]}
5... Nf6 {[%clk 0:03:00.7]} 6. h3 {[%clk 0:02:59.8]} 6... g6 {[%clk 0:03:00.1]}
7. Nf3 {[%clk 0:03:00.3]} 7... Bg7 {[%clk 0:03:00.6]} 8. Qc2 {[%clk 0:03:00]}
8... O-O {[%clk 0:03:00.6]} 9. O-O {[%clk 0:03:00.8]} 9... Qc7 {[%clk
0:02:54.3]} 10. Be3 {[%clk 0:02:59.6]} 10... Nh5 {[%clk 0:02:45]} 11. Rd1 {[%clk
0:02:53.9]} 11... Nf4 {[%clk 0:02:42]} 12. Bf1 {[%clk 0:02:53.8]} 12... Bf5
{[%clk 0:02:36.8]} 13. Qc1 {[%clk 0:02:48.6]} 13... Ne6 {[%clk 0:02:35.5]} 14.
Nbd2 {[%clk 0:02:24.6]} 14... h5 {[%clk 0:02:34.1]} 15. Nb3 {[%clk 0:02:17]}
15... Rac8 {[%clk 0:02:33.1]} 16. g3 {[%clk 0:02:09.3]} 16... a6 {[%clk
0:02:09]} 17. Bg2 {[%clk 0:02:06.9]} 17... Na5 {[%clk 0:02:02.7]} 18. Nxa5
{[%clk 0:01:55.8]} 18... Qxa5 {[%clk 0:02:02.3]} 19. Nh4 {[%clk 0:01:56.2]}
19... Be4 {[%clk 0:02:01.1]} 20. f3 {[%clk 0:01:53.5]} 20... Bf5 {[%clk
0:01:57.1]} 21. Nxf5 {[%clk 0:01:53.7]} 21... gxf5 {[%clk 0:01:58]} 22. Qd2
{[%clk 0:01:36.1]} 22... Qb6 {[%clk 0:01:38.1]} 23. f4 {[%clk 0:01:33.2]} 23...
Nc7 {[%clk 0:01:35.7]} 24. h4 {[%clk 0:01:28.1]} 24... e6 {[%clk 0:01:35.9]} 25.
Bf3 {[%clk 0:01:27.7]} 25... Ne8 {[%clk 0:01:36.1]} 26. Bxh5 {[%clk 0:01:27.8]}
26... Nd6 {[%clk 0:01:35.9]} 27. Qg2 {[%clk 0:01:18.5]} 27... Kh7 {[%clk
0:00:43.1]} 28. Bf3 {[%clk 0:00:58.1]} 28... Bf6 {[%clk 0:00:41]} 29. Kh2 {[%clk
0:00:54.7]} 29... Rg8 {[%clk 0:00:40.8]} 30. Qe2 {[%clk 0:00:49.7]} 30... Rg7
{[%clk 0:00:38.4]} 31. Bg2 {[%clk 0:00:43.7]} 31... Rcg8 {[%clk 0:00:37.9]} 32.
Qh5# {[%clk 0:00:42.8]} 1-0

[Event "Early-Titled-Tuesday-Blitz-April-23-2024"]
[Site "Chess.com"]
[Date "2024.04.23"]
[Round "5"]
[White "PabloZarnicki"]
[Black "Fjal"]
[Result "1-0"]
[WhiteElo "2595"]
[BlackElo "2334"]
[TimeControl "180+1"]
[EndTime "8:56:21 PDT"]
[Termination "PabloZarnicki won by resignation"]

1. e4 {[%clk 0:02:55]} 1... d6 {[%clk 0:02:30.6]} 2. d4 {[%clk 0:02:54.3]} 2...
g6 {[%clk 0:02:29.7]} 3. Nc3 {[%clk 0:02:53.7]} 3... Bg7 {[%clk 0:02:30.2]} 4.
f4 {[%clk 0:02:52.5]} 4... Nd7 {[%clk 0:02:26.4]} 5. Nf3 {[%clk 0:02:51.6]} 5...
c5 {[%clk 0:02:27]} 6. d5 {[%clk 0:02:44.9]} 6... a6 {[%clk 0:02:22.3]} 7. a4
{[%clk 0:02:39.7]} 7... Nh6 {[%clk 0:01:41.9]} 8. Bc4 {[%clk 0:02:27.1]} 8...
O-O {[%clk 0:01:41.5]} 9. O-O {[%clk 0:02:27]} 9... f5 {[%clk 0:01:42.1]} 10. e5
{[%clk 0:02:25.6]} 10... dxe5 {[%clk 0:01:18.8]} 11. fxe5 {[%clk 0:02:25.7]}
11... Ng4 {[%clk 0:01:18.2]} 12. Bf4 {[%clk 0:02:22.5]} 12... Ndxe5 {[%clk
0:01:13]} 13. Ba2 {[%clk 0:02:10.8]} 13... Kh8 {[%clk 0:01:00.7]} 14. Re1 {[%clk
0:02:03]} 14... Nxf3+ {[%clk 0:00:59]} 15. gxf3 {[%clk 0:02:00.8]} 15... Nf6
{[%clk 0:00:55.2]} 16. Qe2 {[%clk 0:02:01]} 16... Nh5 {[%clk 0:00:43.7]} 17. Be5
{[%clk 0:01:59.3]} 17... Qb6 {[%clk 0:00:37.1]} 18. a5 {[%clk 0:01:54.5]} 18...
Qb4 {[%clk 0:00:32.2]} 19. Bxg7+ {[%clk 0:01:48.9]} 19... Nxg7 {[%clk
0:00:33.1]} 20. Qxe7 {[%clk 0:01:47.2]} 20... Re8 {[%clk 0:00:20.3]} 21. Qf7
{[%clk 0:01:42.9]} 21... Qd4+ {[%clk 0:00:20]} 22. Kh1 {[%clk 0:01:41.5]} 22...
Rxe1+ {[%clk 0:00:14.8]} 23. Rxe1 {[%clk 0:01:40.3]} 23... Be6 {[%clk
0:00:15.4]} 24. dxe6 {[%clk 0:01:38.4]} 24... Qf2 {[%clk 0:00:16.1]} 25. Re2
{[%clk 0:01:30.1]} 25... Qxf3+ {[%clk 0:00:14.8]} 26. Kg1 {[%clk 0:01:30.3]}
26... Qg4+ {[%clk 0:00:14.8]} 27. Kf1 {[%clk 0:01:24.4]} 27... Re8 {[%clk
0:00:15.3]} 28. e7 {[%clk 0:01:19.2]} 28... Qf4+ {[%clk 0:00:15.7]} 29. Ke1
{[%clk 0:01:14.5]} 29... Qc1+ {[%clk 0:00:15.8]} 30. Nd1 {[%clk 0:01:14.3]}
30... Qxb2 {[%clk 0:00:16.2]} 31. Qf8+ {[%clk 0:01:05.1]} 1-0

[Event "Early-Titled-Tuesday-Blitz-April-23-2024"]
[Site "Chess.com"]
[Date "2024.04.23"]
[Round "5"]
[White "Alexander_Donchenko"]
[Black "goodluck06"]
[Result "1-0"]
[WhiteElo "2888"]
[BlackElo "2676"]
[TimeControl "180+1"]
[EndTime "8:56:26 PDT"]
[Termination "Alexander_Donchenko won by resignation"]

1. Nf3 {[%clk 0:03:00.9]} 1... Nf6 {[%clk 0:02:57.4]} 2. b3 {[%clk 0:02:59.9]}
2... c5 {[%clk 0:02:53.2]} 3. Bb2 {[%clk 0:02:59.7]} 3... Nc6 {[%clk 0:02:53.8]}
4. e3 {[%clk 0:03:00]} 4... g6 {[%clk 0:02:53.5]} 5. d4 {[%clk 0:03:00.3]} 5...
cxd4 {[%clk 0:02:53.2]} 6. Nxd4 {[%clk 0:03:01.2]} 6... Bg7 {[%clk 0:02:52.9]}
7. Be2 {[%clk 0:03:00.5]} 7... O-O {[%clk 0:02:51.5]} 8. O-O {[%clk 0:03:00.9]}
8... Nxd4 {[%clk 0:02:33.3]} 9. Bxd4 {[%clk 0:03:01.8]} 9... d5 {[%clk
0:02:24.6]} 10. c4 {[%clk 0:03:01.5]} 10... dxc4 {[%clk 0:02:24.3]} 11. Bxc4
{[%clk 0:03:01.5]} 11... Bd7 {[%clk 0:02:23.5]} 12. Nd2 {[%clk 0:02:56.4]} 12...
Bc6 {[%clk 0:02:23.5]} 13. Nf3 {[%clk 0:02:56.5]} 13... b5 {[%clk 0:02:05.5]}
14. Be2 {[%clk 0:02:53.2]} 14... a6 {[%clk 0:02:04.4]} 15. Ne5 {[%clk
0:02:52.8]} 15... Bb7 {[%clk 0:02:02.8]} 16. Bf3 {[%clk 0:02:51]} 16... Ne4
{[%clk 0:01:51.8]} 17. Rc1 {[%clk 0:02:49.1]} 17... Rc8 {[%clk 0:01:49.2]} 18.
Qe2 {[%clk 0:02:34.4]} 18... f6 {[%clk 0:01:42.2]} 19. Nd3 {[%clk 0:02:26.5]}
19... e5 {[%clk 0:01:42]} 20. Bb2 {[%clk 0:02:16.7]} 20... Qe7 {[%clk
0:01:39.3]} 21. h4 {[%clk 0:02:05.4]} 21... h5 {[%clk 0:01:35.7]} 22. Rfd1
{[%clk 0:02:01.9]} 22... Rfd8 {[%clk 0:01:22.5]} 23. Rc2 {[%clk 0:01:51.7]}
23... Rxc2 {[%clk 0:00:59.4]} 24. Qxc2 {[%clk 0:01:52.6]} 24... Rc8 {[%clk
0:00:59.9]} 25. Qb1 {[%clk 0:01:52.7]} 25... f5 {[%clk 0:00:26.1]} 26. Rc1
{[%clk 0:01:44.2]} 26... Re8 {[%clk 0:00:25.8]} 27. Qc2 {[%clk 0:01:37.1]} 27...
Rc8 {[%clk 0:00:23.6]} 28. Qd1 {[%clk 0:01:34.5]} 28... Rxc1 {[%clk 0:00:21.3]}
29. Qxc1 {[%clk 0:01:35.4]} 29... Qxh4 {[%clk 0:00:17.7]} 30. Qc7 {[%clk
0:01:33.7]} 30... Nxf2 {[%clk 0:00:13.1]} 31. Nxe5 {[%clk 0:01:11.4]} 31... Ng4
{[%clk 0:00:08.3]} 32. Qf7+ {[%clk 0:01:10.3]} 1-0

[Event "Early-Titled-Tuesday-Blitz-April-23-2024"]
[Site "Chess.com"]
[Date "2024.04.23"]
[Round "5"]
[White "m_ezat"]
[Black "KanalSzachowy"]
[Result "1-0"]
[WhiteElo "2605"]
[BlackElo "2421"]
[TimeControl "180+1"]
[EndTime "8:56:30 PDT"]
[Termination "m_ezat won by resignation"]

1. d4 {[%clk 0:02:41.3]} 1... Nf6 {[%clk 0:02:59.4]} 2. c4 {[%clk 0:02:40.4]}
2... e6 {[%clk 0:02:58.6]} 3. Nc3 {[%clk 0:02:38.5]} 3... Bb4 {[%clk 0:02:57.5]}
4. e3 {[%clk 0:02:37.9]} 4... O-O {[%clk 0:02:56.1]} 5. a3 {[%clk 0:02:34.5]}
5... Bxc3+ {[%clk 0:02:54.9]} 6. bxc3 {[%clk 0:02:35.4]} 6... c5 {[%clk
0:02:54.6]} 7. Bd3 {[%clk 0:02:34.2]} 7... Nc6 {[%clk 0:02:53.6]} 8. Ne2 {[%clk
0:02:31.6]} 8... b6 {[%clk 0:02:52.5]} 9. O-O {[%clk 0:02:28.9]} 9... Ba6 {[%clk
0:02:51.2]} 10. e4 {[%clk 0:02:27.5]} 10... cxd4 {[%clk 0:02:40.1]} 11. cxd4
{[%clk 0:02:26.7]} 11... d5 {[%clk 0:02:41]} 12. cxd5 {[%clk 0:02:25.5]} 12...
exd5 {[%clk 0:02:40.6]} 13. e5 {[%clk 0:02:25.7]} 13... Bxd3 {[%clk 0:02:32.6]}
14. Qxd3 {[%clk 0:02:24.1]} 14... Ne8 {[%clk 0:02:24.7]} 15. Ng3 {[%clk
0:02:21.7]} 15... Nc7 {[%clk 0:02:23.4]} 16. f4 {[%clk 0:02:21.6]} 16... Ne6
{[%clk 0:02:22.3]} 17. Be3 {[%clk 0:02:17.6]} 17... Rc8 {[%clk 0:02:05.4]} 18.
f5 {[%clk 0:02:16.8]} 18... Ng5 {[%clk 0:01:59.6]} 19. f6 {[%clk 0:02:16.1]}
19... Ne4 {[%clk 0:01:47.7]} 20. fxg7 {[%clk 0:02:11]} 20... Re8 {[%clk
0:01:45.1]} 21. Nxe4 {[%clk 0:02:09.9]} 21... dxe4 {[%clk 0:01:41.1]} 22. Qxe4
{[%clk 0:02:09.9]} 22... Na5 {[%clk 0:01:27.9]} 23. Rxf7 {[%clk 0:01:57.7]}
23... Kxf7 {[%clk 0:01:05]} 24. Qxh7 {[%clk 0:01:57.1]} 24... Rg8 {[%clk
0:00:54.8]} 25. Rf1+ {[%clk 0:01:33.6]} 25... Ke6 {[%clk 0:00:54.6]} 26. Rf6+
{[%clk 0:01:33.3]} 26... Kd5 {[%clk 0:00:54.4]} 27. Rd6+ {[%clk 0:01:31.7]}
27... Qxd6 {[%clk 0:00:43]} 28. exd6 {[%clk 0:01:31.7]} 28... Nc4 {[%clk
0:00:42.8]} 29. Qf5+ {[%clk 0:01:28.9]} 29... Kxd6 {[%clk 0:00:39.5]} 30. Bf4+
{[%clk 0:01:28.1]} 30... Ke7 {[%clk 0:00:38.3]} 31. h4 {[%clk 0:01:20.4]} 31...
Rc6 {[%clk 0:00:18.1]} 32. Qd5 {[%clk 0:01:11.3]} 32... Rgc8 {[%clk 0:00:12.8]}
33. g8=Q {[%clk 0:01:10.5]} 1-0

[Event "Early-Titled-Tuesday-Blitz-April-23-2024"]
[Site "Chess.com"]
[Date "2024.04.23"]
[Round "5"]
[White "EdmundPlayer"]
[Black "ChadBiryani"]
[Result "0-1"]
[WhiteElo "2271"]
[BlackElo "2446"]
[TimeControl "180+1"]
[EndTime "8:56:32 PDT"]
[Termination "ChadBiryani won on time"]

1. Nf3 {[%clk 0:02:56.1]} 1... f5 {[%clk 0:02:47.7]} 2. b3 {[%clk 0:02:53.6]}
2... d6 {[%clk 0:02:42.4]} 3. d4 {[%clk 0:02:49.1]} 3... Nf6 {[%clk 0:02:42.2]}
4. Bb2 {[%clk 0:02:48.2]} 4... g6 {[%clk 0:02:42.1]} 5. e3 {[%clk 0:02:45.9]}
5... Bg7 {[%clk 0:02:42.1]} 6. Nbd2 {[%clk 0:02:45.3]} 6... O-O {[%clk
0:02:42.5]} 7. Be2 {[%clk 0:02:44.9]} 7... c6 {[%clk 0:02:42.9]} 8. O-O {[%clk
0:02:43.9]} 8... a5 {[%clk 0:02:42.2]} 9. a4 {[%clk 0:02:42.7]} 9... Na6 {[%clk
0:02:38.5]} 10. Re1 {[%clk 0:02:42.6]} 10... Nc7 {[%clk 0:02:37]} 11. Bf1 {[%clk
0:02:42.1]} 11... h6 {[%clk 0:02:25.8]} 12. e4 {[%clk 0:02:09]} 12... fxe4
{[%clk 0:02:22]} 13. Nxe4 {[%clk 0:02:09.9]} 13... Nxe4 {[%clk 0:02:17.1]} 14.
Rxe4 {[%clk 0:02:09.3]} 14... Bf5 {[%clk 0:02:17.6]} 15. Re1 {[%clk 0:01:59.5]}
15... Qd7 {[%clk 0:02:17.6]} 16. Nh4 {[%clk 0:01:39.4]} 16... Rae8 {[%clk
0:02:08.6]} 17. Nxf5 {[%clk 0:01:36.6]} 17... Qxf5 {[%clk 0:02:08.1]} 18. Qd2
{[%clk 0:01:32.9]} 18... b6 {[%clk 0:02:01.1]} 19. Bd3 {[%clk 0:01:31.3]} 19...
Qf6 {[%clk 0:01:58.9]} 20. Rab1 {[%clk 0:01:20.4]} 20... Nd5 {[%clk 0:01:57.3]}
21. c4 {[%clk 0:01:09.9]} 21... Nf4 {[%clk 0:01:57]} 22. Bf1 {[%clk 0:00:58.7]}
22... Qg5 {[%clk 0:01:56.2]} 23. Qe3 {[%clk 0:00:51.4]} 23... d5 {[%clk
0:01:48.9]} 24. Qg3 {[%clk 0:00:42.7]} 24... Qf5 {[%clk 0:01:42.2]} 25. Rbd1
{[%clk 0:00:33.5]} 25... g5 {[%clk 0:01:40.8]} 26. Ba3 {[%clk 0:00:31.6]} 26...
Rf7 {[%clk 0:01:38.6]} 27. Re3 {[%clk 0:00:18.1]} 27... e6 {[%clk 0:01:35.8]}
28. Rde1 {[%clk 0:00:16]} 28... Bxd4 {[%clk 0:01:33.7]} 29. Rf3 {[%clk
0:00:13.5]} 29... Kh8 {[%clk 0:01:23]} 30. Bd3 {[%clk 0:00:12.7]} 30... Qf6
{[%clk 0:01:23]} 31. cxd5 {[%clk 0:00:10.5]} 31... cxd5 {[%clk 0:01:20.9]} 32.
Bc1 {[%clk 0:00:09.6]} 32... e5 {[%clk 0:01:18.7]} 33. Bxf4 {[%clk 0:00:08.6]}
33... gxf4 {[%clk 0:01:18.8]} 34. Qh3 {[%clk 0:00:08.5]} 34... e4 {[%clk
0:01:13.7]} 35. Qxh6+ {[%clk 0:00:04.4]} 35... Qxh6 {[%clk 0:01:13.5]} 0-1